[Event "Early-Titled-Tuesday-Blitz-January-23-2024"]
[Site "Chess.com"]
[Date "2024.01.23"]
[Round "7"]
[White "JoliyRoger"]
[Black "SashaKuzhilniy"]
[Result "1-0"]
[WhiteElo "2480"]
[BlackElo "2626"]
[TimeControl "180+1"]
[EndTime "9:18:36 PST"]
[Termination "JoliyRoger won by checkmate"]

1. d4 {[%clk 0:03:00.9]} 1... Nf6 {[%clk 0:02:57.9]} 2. Nf3 {[%clk 0:03:01.3]}
2... d5 {[%clk 0:02:57]} 3. e3 {[%clk 0:03:00.5]} 3... e6 {[%clk 0:02:57.2]} 4.
c4 {[%clk 0:03:00.8]} 4... Be7 {[%clk 0:02:56.5]} 5. Nc3 {[%clk 0:03:00.9]} 5...
O-O {[%clk 0:02:56.7]} 6. b3 {[%clk 0:03:01.5]} 6... c5 {[%clk 0:02:54.6]} 7.
Bb2 {[%clk 0:02:58.4]} 7... cxd4 {[%clk 0:02:54.7]} 8. Nxd4 {[%clk 0:02:53.1]}
8... e5 {[%clk 0:02:39]} 9. Nf3 {[%clk 0:02:47]} 9... e4 {[%clk 0:02:39.2]} 10.
Nd4 {[%clk 0:02:46.6]} 10... dxc4 {[%clk 0:02:29.1]} 11. Bxc4 {[%clk 0:02:45.8]}
11... Nbd7 {[%clk 0:02:27.2]} 12. O-O {[%clk 0:02:30.7]} 12... Ne5 {[%clk
0:02:27.1]} 13. Be2 {[%clk 0:02:31.4]} 13... Bg4 {[%clk 0:02:18.5]} 14. h3
{[%clk 0:02:24.7]} 14... Bxe2 {[%clk 0:02:18.1]} 15. Qxe2 {[%clk 0:02:25.4]}
15... Rc8 {[%clk 0:01:59.6]} 16. Rad1 {[%clk 0:02:22.7]} 16... Qa5 {[%clk
0:01:59]} 17. Nf5 {[%clk 0:02:11.7]} 17... Ba3 {[%clk 0:01:57.2]} 18. Bxa3
{[%clk 0:02:04]} 18... Qxa3 {[%clk 0:01:58.1]} 19. Nb5 {[%clk 0:01:55.6]} 19...
Qa5 {[%clk 0:01:53.9]} 20. Ne7+ {[%clk 0:01:54.1]} 20... Kh8 {[%clk 0:01:50.3]}
21. Nxc8 {[%clk 0:01:54.7]} 21... Rxc8 {[%clk 0:01:50.9]} 22. Nd6 {[%clk
0:01:55]} 22... Rb8 {[%clk 0:01:45.9]} 23. Nc4 {[%clk 0:01:55.3]} 23... Nxc4
{[%clk 0:01:44]} 24. Qxc4 {[%clk 0:01:55.7]} 24... Qh5 {[%clk 0:01:38.4]} 25.
Qc7 {[%clk 0:01:49.3]} 25... Rg8 {[%clk 0:01:37.6]} 26. Rd8 {[%clk 0:01:46]}
26... h6 {[%clk 0:01:36.8]} 27. Rxg8+ {[%clk 0:01:44.9]} 27... Kxg8 {[%clk
0:01:37.7]} 28. Qxb7 {[%clk 0:01:45.3]} 28... a5 {[%clk 0:01:36.9]} 29. a4
{[%clk 0:01:34.7]} 29... Qg5 {[%clk 0:01:29.1]} 30. Qb5 {[%clk 0:01:33.9]} 30...
Qh4 {[%clk 0:01:19.3]} 31. Qxa5 {[%clk 0:01:30.9]} 31... g5 {[%clk 0:01:19.9]}
32. Qc7 {[%clk 0:01:12.2]} 32... g4 {[%clk 0:01:17.8]} 33. Qg3 {[%clk
0:01:12.7]} 33... Qg5 {[%clk 0:01:16.6]} 34. h4 {[%clk 0:01:08.4]} 34... Qd5
{[%clk 0:01:11.7]} 35. Qb8+ {[%clk 0:00:54.7]} 35... Kg7 {[%clk 0:01:11.9]} 36.
Qb5 {[%clk 0:00:55]} 36... Qd2 {[%clk 0:01:07.7]} 37. Qe5 {[%clk 0:00:54.5]}
37... Kg6 {[%clk 0:01:03.2]} 38. g3 {[%clk 0:00:53.2]} 38... Qc2 {[%clk
0:00:56.8]} 39. Qb5 {[%clk 0:00:43.4]} 39... Nh5 {[%clk 0:00:50.2]} 40. Kg2
{[%clk 0:00:36.9]} 40... Ng7 {[%clk 0:00:48]} 41. h5+ {[%clk 0:00:21]} 41...
Nxh5 {[%clk 0:00:41.7]} 42. Rh1 {[%clk 0:00:21.5]} 42... Nf6 {[%clk 0:00:41.7]}
43. a5 {[%clk 0:00:22.1]} 43... Qd2 {[%clk 0:00:35.8]} 44. a6 {[%clk 0:00:21.9]}
44... Nd7 {[%clk 0:00:35]} 45. Qh5+ {[%clk 0:00:20.8]} 45... Kf6 {[%clk
0:00:34.4]} 46. Qxh6+ {[%clk 0:00:21.1]} 46... Ke7 {[%clk 0:00:35]} 47. Qg5+
{[%clk 0:00:20.2]} 47... Nf6 {[%clk 0:00:32.7]} 48. Qc5+ {[%clk 0:00:19.4]}
48... Ke6 {[%clk 0:00:32.4]} 49. a7 {[%clk 0:00:19.7]} 49... Qe2 {[%clk
0:00:32.4]} 50. Qc6+ {[%clk 0:00:16.2]} 50... Kf5 {[%clk 0:00:31.3]} 51. Qc8+
{[%clk 0:00:15.2]} 51... Kg6 {[%clk 0:00:31.3]} 52. Qc1 {[%clk 0:00:09]} 52...
Qf3+ {[%clk 0:00:20.1]} 53. Kg1 {[%clk 0:00:09.2]} 53... Nh5 {[%clk 0:00:19.8]}
54. Rxh5 {[%clk 0:00:08.5]} 54... Kxh5 {[%clk 0:00:20.7]} 55. a8=Q {[%clk
0:00:09.1]} 55... Qf6 {[%clk 0:00:20.3]} 56. Qg8 {[%clk 0:00:08.9]} 56... Kh6
{[%clk 0:00:18.9]} 57. Qd1 {[%clk 0:00:09.2]} 57... Qf5 {[%clk 0:00:18]} 58.
Qgxg4 {[%clk 0:00:09.5]} 58... Qf6 {[%clk 0:00:15.7]} 59. Qh5+ {[%clk
0:00:09.5]} 59... Kg7 {[%clk 0:00:16.3]} 60. Qdg4+ {[%clk 0:00:09.6]} 60... Kf8
{[%clk 0:00:16.9]} 61. Qc5+ {[%clk 0:00:09.7]} 61... Ke8 {[%clk 0:00:16.4]} 62.
Qgc8+ {[%clk 0:00:09.7]} 62... Qd8 {[%clk 0:00:16.7]} 63. Qe5+ {[%clk
0:00:09.9]} 63... Kf8 {[%clk 0:00:16.8]} 64. Qxd8# {[%clk 0:00:10.5]} 1-0

[Event "Early-Titled-Tuesday-Blitz-January-23-2024"]
[Site "Chess.com"]
[Date "2024.01.23"]
[Round "7"]
[White "Boundless_Strike"]
[Black "BardArtem"]
[Result "0-1"]
[WhiteElo "2614"]
[BlackElo "2822"]
[TimeControl "180+1"]
[EndTime "9:18:38 PST"]
[Termination "BardArtem won on time"]

1. d4 {[%clk 0:03:00.9]} 1... Nf6 {[%clk 0:02:59]} 2. f3 {[%clk 0:03:00.8]} 2...
c5 {[%clk 0:02:55.7]} 3. d5 {[%clk 0:02:59.6]} 3... d6 {[%clk 0:02:55.5]} 4. e4
{[%clk 0:02:58.3]} 4... g6 {[%clk 0:02:55.7]} 5. Nc3 {[%clk 0:02:52.4]} 5... Bg7
{[%clk 0:02:55.6]} 6. Bg5 {[%clk 0:02:51.6]} 6... h6 {[%clk 0:02:53.7]} 7. Be3
{[%clk 0:02:51.7]} 7... a6 {[%clk 0:02:51.5]} 8. a4 {[%clk 0:02:51.4]} 8... O-O
{[%clk 0:02:51.6]} 9. Qd2 {[%clk 0:02:51.4]} 9... Kh7 {[%clk 0:02:51.5]} 10. h4
{[%clk 0:02:50.5]} 10... Nbd7 {[%clk 0:02:50.4]} 11. Nh3 {[%clk 0:02:48.2]}
11... Rb8 {[%clk 0:02:49.2]} 12. Be2 {[%clk 0:02:37.8]} 12... Ne5 {[%clk
0:02:45.5]} 13. g4 {[%clk 0:02:18.3]} 13... b5 {[%clk 0:02:43.7]} 14. axb5
{[%clk 0:02:19]} 14... axb5 {[%clk 0:02:43.8]} 15. g5 {[%clk 0:02:19]} 15... Nh5
{[%clk 0:02:38.3]} 16. gxh6 {[%clk 0:02:09.6]} 16... Bf6 {[%clk 0:02:38.3]} 17.
Ng5+ {[%clk 0:02:08.3]} 17... Bxg5 {[%clk 0:02:37.5]} 18. hxg5 {[%clk
0:02:07.1]} 18... b4 {[%clk 0:02:34.3]} 19. Nd1 {[%clk 0:02:05.6]} 19... Ng3
{[%clk 0:02:20]} 20. Rh2 {[%clk 0:01:56.8]} 20... Nxe2 {[%clk 0:02:17.5]} 21.
Qxe2 {[%clk 0:01:41.2]} 21... f5 {[%clk 0:02:16.3]} 22. Bf4 {[%clk 0:01:19.1]}
22... fxe4 {[%clk 0:02:12.2]} 23. Bxe5 {[%clk 0:01:14.3]} 23... exf3 {[%clk
0:02:09.5]} 24. Qe3 {[%clk 0:01:10.7]} 24... dxe5 {[%clk 0:02:09.5]} 25. Qxe5
{[%clk 0:01:11.6]} 25... Rf7 {[%clk 0:01:53.2]} 26. Qxb8 {[%clk 0:00:56]} 26...
Qxd5 {[%clk 0:01:51.1]} 27. Qxc8 {[%clk 0:00:23]} 27... Qe5+ {[%clk 0:01:50.2]}
28. Ne3 {[%clk 0:00:17.9]} 28... f2+ {[%clk 0:01:26.5]} 29. Ke2 {[%clk
0:00:13.3]} 29... Qxh2 {[%clk 0:01:26.6]} 30. Rf1 {[%clk 0:00:10.6]} 30... Qg3
{[%clk 0:01:04.4]} 31. Qxc5 {[%clk 0:00:09.9]} 31... Qf3+ {[%clk 0:01:02.7]} 32.
Kd2 {[%clk 0:00:07.5]} 32... b3 {[%clk 0:00:59.7]} 33. cxb3 {[%clk 0:00:06.4]}
33... e6 {[%clk 0:00:54.6]} 34. Kc2 {[%clk 0:00:04.7]} 34... Qe2+ {[%clk
0:00:54]} 35. Kb1 {[%clk 0:00:04.9]} 35... Qd3+ {[%clk 0:00:53.2]} 36. Kc1
{[%clk 0:00:03.1]} 36... Qd8 {[%clk 0:00:39.5]} 37. Rd1 {[%clk 0:00:02.8]} 37...
Qb8 {[%clk 0:00:36]} 38. Kb1 {[%clk 0:00:03]} 38... Qxb3 {[%clk 0:00:35.2]} 39.
Qd4 {[%clk 0:00:02.3]} 39... e5 {[%clk 0:00:31.4]} 40. Qd2 {[%clk 0:00:02.7]}
40... Qa4 {[%clk 0:00:27.2]} 41. Qd5 {[%clk 0:00:02.4]} 41... Ra7 {[%clk
0:00:25.5]} 42. Nc2 {[%clk 0:00:02.4]} 42... e4 {[%clk 0:00:15.8]} 43. Qd4
{[%clk 0:00:02.3]} 43... Qxd4 {[%clk 0:00:09.9]} 44. Nxd4 {[%clk 0:00:03.2]}
44... Rd7 {[%clk 0:00:10.6]} 45. Kc2 {[%clk 0:00:02.3]} 45... e3 {[%clk
0:00:11.2]} 46. Kd3 {[%clk 0:00:02.2]} 46... Rxd4+ {[%clk 0:00:11]} 47. Kxd4
{[%clk 0:00:02.2]} 47... e2 {[%clk 0:00:11.7]} 48. Rc1 {[%clk 0:00:02.6]} 48...
e1=Q {[%clk 0:00:11.8]} 49. Rc7+ {[%clk 0:00:03.3]} 49... Kg8 {[%clk 0:00:12.3]}
50. Rc8+ {[%clk 0:00:03.9]} 50... Kf7 {[%clk 0:00:12.8]} 51. Rc7+ {[%clk
0:00:04.6]} 51... Ke6 {[%clk 0:00:08.9]} 52. Rc6+ {[%clk 0:00:04.8]} 52... Kf5
{[%clk 0:00:09.1]} 53. Rf6+ {[%clk 0:00:05.3]} 53... Kxg5 {[%clk 0:00:09.5]} 54.
h7 {[%clk 0:00:06.2]} 54... Qd2+ {[%clk 0:00:08.1]} 0-1

[Event "Early-Titled-Tuesday-Blitz-January-23-2024"]
[Site "Chess.com"]
[Date "2024.01.23"]
[Round "7"]
[White "Jospem"]
[Black "sergoy"]
[Result "1/2-1/2"]
[WhiteElo "3105"]
[BlackElo "3029"]
[TimeControl "180+1"]
[EndTime "9:18:39 PST"]
[Termination "Game drawn - insufficient material"]

1. e4 {[%clk 0:03:00.9]} 1... c5 {[%clk 0:03:00.1]} 2. Nf3 {[%clk 0:02:59.1]}
2... d6 {[%clk 0:03:00.6]} 3. c3 {[%clk 0:02:59.5]} 3... Nf6 {[%clk 0:03:00.8]}
4. h3 {[%clk 0:03:00.2]} 4... g6 {[%clk 0:03:00.7]} 5. Bd3 {[%clk 0:03:00.6]}
5... Bg7 {[%clk 0:03:01.2]} 6. Bc2 {[%clk 0:03:00.9]} 6... e5 {[%clk 0:02:57.3]}
7. d3 {[%clk 0:03:00.6]} 7... O-O {[%clk 0:02:57.3]} 8. Bg5 {[%clk 0:03:01.3]}
8... Nc6 {[%clk 0:02:54.6]} 9. Nbd2 {[%clk 0:03:01.5]} 9... Be6 {[%clk
0:02:52.9]} 10. Bb3 {[%clk 0:03:00.7]} 10... d5 {[%clk 0:02:39.6]} 11. Qe2
{[%clk 0:02:43.6]} 11... h6 {[%clk 0:02:20.9]} 12. Bxf6 {[%clk 0:02:42.8]} 12...
Bxf6 {[%clk 0:02:21.8]} 13. exd5 {[%clk 0:02:43.7]} 13... Bxd5 {[%clk 0:02:22]}
14. Ne4 {[%clk 0:02:44.5]} 14... Be7 {[%clk 0:02:14.8]} 15. h4 {[%clk
0:02:44.9]} 15... Kg7 {[%clk 0:02:12.5]} 16. g4 {[%clk 0:02:33.4]} 16... Bxb3
{[%clk 0:02:06.9]} 17. axb3 {[%clk 0:02:32.7]} 17... Qd5 {[%clk 0:02:07.3]} 18.
h5 {[%clk 0:02:24.6]} 18... f5 {[%clk 0:01:51.9]} 19. gxf5 {[%clk 0:02:18]}
19... gxf5 {[%clk 0:01:52.3]} 20. Ned2 {[%clk 0:02:13.8]} 20... Rad8 {[%clk
0:01:46]} 21. Rg1+ {[%clk 0:01:36.2]} 21... Kh7 {[%clk 0:01:44.6]} 22. Nc4
{[%clk 0:01:35.4]} 22... e4 {[%clk 0:01:23.3]} 23. dxe4 {[%clk 0:01:35.5]} 23...
Qxe4 {[%clk 0:01:12.3]} 24. Qxe4 {[%clk 0:01:01.2]} 24... fxe4 {[%clk
0:01:13.2]} 25. Nfd2 {[%clk 0:01:02]} 25... Rf5 {[%clk 0:00:56.8]} 26. Nxe4
{[%clk 0:00:46]} 26... Rxh5 {[%clk 0:00:52.8]} 27. Ke2 {[%clk 0:00:46.2]} 27...
Rhd5 {[%clk 0:00:45.4]} 28. f4 {[%clk 0:00:37]} 28... Rf5 {[%clk 0:00:42.9]} 29.
Raf1 {[%clk 0:00:33.8]} 29... Rdf8 {[%clk 0:00:36]} 30. Ke3 {[%clk 0:00:20.8]}
30... Nd8 {[%clk 0:00:24.5]} 31. Ncd6 {[%clk 0:00:16.1]} 31... Bxd6 {[%clk
0:00:19.6]} 32. Nxd6 {[%clk 0:00:17]} 32... Rd5 {[%clk 0:00:15.6]} 33. Rd1
{[%clk 0:00:15]} 33... Rxd1 {[%clk 0:00:14.4]} 34. Rxd1 {[%clk 0:00:15.9]} 34...
Kg7 {[%clk 0:00:13.3]} 35. Rg1+ {[%clk 0:00:14]} 35... Kh7 {[%clk 0:00:10.5]}
36. Ke4 {[%clk 0:00:07.3]} 36... Ne6 {[%clk 0:00:09.5]} 37. f5 {[%clk
0:00:03.2]} 37... Ng5+ {[%clk 0:00:10]} 38. Kd5 {[%clk 0:00:03.9]} 38... b6
{[%clk 0:00:08.4]} 39. Re1 {[%clk 0:00:03.2]} 39... Kg7 {[%clk 0:00:05.5]} 40.
Re7+ {[%clk 0:00:03.2]} 40... Kf6 {[%clk 0:00:05.9]} 41. Rxa7 {[%clk 0:00:03.7]}
41... Rd8 {[%clk 0:00:06.3]} 42. Kc6 {[%clk 0:00:03.2]} 42... h5 {[%clk
0:00:06.2]} 43. Ra1 {[%clk 0:00:02.5]} 43... h4 {[%clk 0:00:04.9]} 44. Rh1
{[%clk 0:00:03]} 44... h3 {[%clk 0:00:05]} 45. b4 {[%clk 0:00:03.7]} 45... cxb4
{[%clk 0:00:05.1]} 46. cxb4 {[%clk 0:00:04.6]} 46... Ke5 {[%clk 0:00:04.7]} 47.
Nb7 {[%clk 0:00:02.2]} 47... Rd2 {[%clk 0:00:03.9]} 48. Kxb6 {[%clk 0:00:02.6]}
48... Kxf5 {[%clk 0:00:04.1]} 49. Nc5 {[%clk 0:00:02.8]} 49... Rxb2 {[%clk
0:00:04.2]} 50. b5 {[%clk 0:00:03.4]} 50... Kg4 {[%clk 0:00:04.1]} 51. Kc6
{[%clk 0:00:02.7]} 51... Nf3 {[%clk 0:00:04.5]} 52. b6 {[%clk 0:00:02.2]} 52...
Kg3 {[%clk 0:00:03.1]} 53. b7 {[%clk 0:00:02.3]} 53... Kg2 {[%clk 0:00:03]} 54.
Rxh3 {[%clk 0:00:02.6]} 54... Kxh3 {[%clk 0:00:03.2]} 55. Kc7 {[%clk 0:00:03.3]}
55... Rxb7+ {[%clk 0:00:01.7]} 56. Kxb7 {[%clk 0:00:03.6]} 1/2-1/2

[Event "Early-Titled-Tuesday-Blitz-January-23-2024"]
[Site "Chess.com"]
[Date "2024.01.23"]
[Round "7"]
[White "GaiozNigalidze"]
[Black "HeroWilczek"]
[Result "0-1"]
[WhiteElo "2696"]
[BlackElo "2473"]
[TimeControl "180+1"]
[EndTime "9:18:42 PST"]
[Termination "HeroWilczek won by checkmate"]

1. e4 {[%clk 0:03:00.9]} 1... c6 {[%clk 0:02:59.5]} 2. Nf3 {[%clk 0:02:56.1]}
2... d5 {[%clk 0:02:59.9]} 3. exd5 {[%clk 0:02:55.6]} 3... cxd5 {[%clk
0:03:00.8]} 4. d4 {[%clk 0:02:55.8]} 4... Nc6 {[%clk 0:03:01]} 5. Be2 {[%clk
0:02:53.7]} 5... Nf6 {[%clk 0:03:00.9]} 6. O-O {[%clk 0:02:54]} 6... Bg4 {[%clk
0:03:00.7]} 7. h3 {[%clk 0:02:52.6]} 7... Bxf3 {[%clk 0:03:00.9]} 8. Bxf3 {[%clk
0:02:52.6]} 8... e6 {[%clk 0:03:01.8]} 9. c3 {[%clk 0:02:51.9]} 9... Bd6 {[%clk
0:03:02]} 10. Bg5 {[%clk 0:02:50.9]} 10... h6 {[%clk 0:03:01.6]} 11. Be3 {[%clk
0:02:48.6]} 11... O-O {[%clk 0:03:01.4]} 12. Nd2 {[%clk 0:02:48.8]} 12... b5
{[%clk 0:03:01.1]} 13. a3 {[%clk 0:02:48.4]} 13... Rb8 {[%clk 0:03:00.1]} 14. b4
{[%clk 0:02:48.1]} 14... a5 {[%clk 0:02:56]} 15. Nb3 {[%clk 0:02:48.1]} 15... a4
{[%clk 0:02:53.6]} 16. Nc5 {[%clk 0:02:47.8]} 16... Bxc5 {[%clk 0:02:54.1]} 17.
bxc5 {[%clk 0:02:48.1]} 17... Re8 {[%clk 0:02:47.2]} 18. Bf4 {[%clk 0:02:40.5]}
18... e5 {[%clk 0:02:40]} 19. dxe5 {[%clk 0:02:32.9]} 19... Nxe5 {[%clk
0:02:40.9]} 20. Be2 {[%clk 0:02:29.5]} 20... Rb7 {[%clk 0:02:36.5]} 21. Rb1
{[%clk 0:02:10.7]} 21... Ne4 {[%clk 0:02:24.8]} 22. Qc1 {[%clk 0:01:41.1]} 22...
Nxc5 {[%clk 0:02:09.5]} 23. Bxb5 {[%clk 0:01:26.8]} 23... Nb3 {[%clk 0:01:58.5]}
24. Bxe8 {[%clk 0:00:57]} 24... Nxc1 {[%clk 0:01:56.6]} 25. Rxb7 {[%clk
0:00:57.6]} 25... Ne2+ {[%clk 0:01:54.2]} 26. Kh1 {[%clk 0:00:55.3]} 26... Nxf4
{[%clk 0:01:49.7]} 27. Bb5 {[%clk 0:00:51.7]} 27... Qg5 {[%clk 0:01:46.8]} 28.
Rg1 {[%clk 0:00:50.7]} 28... Qh4 {[%clk 0:01:31.9]} 29. Bf1 {[%clk 0:00:41.2]}
29... Qxf2 {[%clk 0:01:27.2]} 30. Re7 {[%clk 0:00:41.4]} 30... Neg6 {[%clk
0:01:19]} 31. Re8+ {[%clk 0:00:40.9]} 31... Kh7 {[%clk 0:01:18.9]} 32. Bb5
{[%clk 0:00:38.2]} 32... Nh4 {[%clk 0:01:13.4]} 33. Ree1 {[%clk 0:00:33.1]}
33... Nhxg2 {[%clk 0:01:08.1]} 34. Ref1 {[%clk 0:00:32.5]} 34... Qg3 {[%clk
0:01:05.3]} 35. Bd7 {[%clk 0:00:28.6]} 35... g5 {[%clk 0:00:52.4]} 36. Rxf4
{[%clk 0:00:22.3]} 36... Qxf4 {[%clk 0:00:43.5]} 37. Rxg2 {[%clk 0:00:22]} 37...
f5 {[%clk 0:00:40.4]} 38. Kg1 {[%clk 0:00:11.8]} 38... Qc1+ {[%clk 0:00:38]} 39.
Kh2 {[%clk 0:00:11.9]} 39... Qxa3 {[%clk 0:00:34.8]} 40. Bxf5+ {[%clk
0:00:11.5]} 40... Kg7 {[%clk 0:00:35.4]} 41. Rc2 {[%clk 0:00:11.1]} 41... Qd6+
{[%clk 0:00:33.1]} 42. Kg2 {[%clk 0:00:10.6]} 42... Qe5 {[%clk 0:00:31.8]} 43.
Bd3 {[%clk 0:00:10.5]} 43... a3 {[%clk 0:00:27.7]} 44. c4 {[%clk 0:00:08.5]}
44... Qd4 {[%clk 0:00:12.4]} 45. Bf5 {[%clk 0:00:07.2]} 45... dxc4 {[%clk
0:00:10.7]} 46. Ra2 {[%clk 0:00:07.5]} 46... Qd5+ {[%clk 0:00:08.2]} 47. Kg3
{[%clk 0:00:06.4]} 47... Qxf5 {[%clk 0:00:08.5]} 48. Rxa3 {[%clk 0:00:07]} 48...
Qf4+ {[%clk 0:00:09]} 49. Kg2 {[%clk 0:00:07.5]} 49... Kg6 {[%clk 0:00:09.5]}
50. Ra6+ {[%clk 0:00:07.1]} 50... Kh5 {[%clk 0:00:10.1]} 51. Ra5 {[%clk
0:00:07.5]} 51... Qe4+ {[%clk 0:00:09.7]} 52. Kf2 {[%clk 0:00:07.4]} 52... c3
{[%clk 0:00:08.3]} 53. Kg3 {[%clk 0:00:06.7]} 53... Qf4+ {[%clk 0:00:06.8]} 54.
Kg2 {[%clk 0:00:06.5]} 54... c2 {[%clk 0:00:07.4]} 55. h4 {[%clk 0:00:06.4]}
55... Qg4+ {[%clk 0:00:07.1]} 56. Kh2 {[%clk 0:00:06.4]} 56... Qxh4+ {[%clk
0:00:06.6]} 57. Kg2 {[%clk 0:00:06.2]} 57... Qe4+ {[%clk 0:00:06.6]} 58. Kh2
{[%clk 0:00:06.5]} 58... c1=Q {[%clk 0:00:04.6]} 59. Rxg5+ {[%clk 0:00:06.7]}
59... hxg5 {[%clk 0:00:04.2]} 60. Kg3 {[%clk 0:00:07.2]} 60... Qcf4+ {[%clk
0:00:04.6]} 61. Kh3 {[%clk 0:00:07.6]} 61... Qef3# {[%clk 0:00:04.8]} 0-1

[Event "Early-Titled-Tuesday-Blitz-January-23-2024"]
[Site "Chess.com"]
[Date "2024.01.23"]
[Round "7"]
[White "DDTerziev04"]
[Black "BashirliSaadat"]
[Result "1-0"]
[WhiteElo "2220"]
[BlackElo "2405"]
[TimeControl "180+1"]
[EndTime "9:18:45 PST"]
[Termination "DDTerziev04 won by resignation"]

1. e4 {[%clk 0:03:00.9]} 1... c6 {[%clk 0:02:59.8]} 2. d4 {[%clk 0:02:57.2]}
2... d5 {[%clk 0:02:59.8]} 3. exd5 {[%clk 0:02:57]} 3... cxd5 {[%clk 0:02:59.4]}
4. Bd3 {[%clk 0:02:57.4]} 4... Nf6 {[%clk 0:02:58.9]} 5. c3 {[%clk 0:02:57.1]}
5... Nc6 {[%clk 0:02:59.4]} 6. Bf4 {[%clk 0:02:56.7]} 6... Bg4 {[%clk
0:02:57.7]} 7. Qb3 {[%clk 0:02:55.7]} 7... Qd7 {[%clk 0:02:55.1]} 8. Nd2 {[%clk
0:02:49.5]} 8... e6 {[%clk 0:02:51.8]} 9. Ngf3 {[%clk 0:02:48.6]} 9... Be7
{[%clk 0:02:44.1]} 10. O-O {[%clk 0:02:43.9]} 10... O-O {[%clk 0:02:43.9]} 11.
Rae1 {[%clk 0:02:42.9]} 11... Rfc8 {[%clk 0:02:32]} 12. h3 {[%clk 0:02:41.3]}
12... Bh5 {[%clk 0:02:30.1]} 13. Ne5 {[%clk 0:02:40.2]} 13... Nxe5 {[%clk
0:02:27.6]} 14. Bxe5 {[%clk 0:02:41.1]} 14... a6 {[%clk 0:02:13.8]} 15. f4
{[%clk 0:02:35.5]} 15... Bg6 {[%clk 0:02:10.4]} 16. Qc2 {[%clk 0:02:17.2]} 16...
b5 {[%clk 0:02:01.2]} 17. f5 {[%clk 0:02:12]} 17... exf5 {[%clk 0:01:56.3]} 18.
Bxf5 {[%clk 0:02:12.9]} 18... Bxf5 {[%clk 0:01:55.5]} 19. Rxf5 {[%clk
0:02:06.6]} 19... b4 {[%clk 0:01:43]} 20. Ref1 {[%clk 0:02:00.7]} 20... bxc3
{[%clk 0:01:34.9]} 21. bxc3 {[%clk 0:02:01.6]} 21... Qc6 {[%clk 0:01:30]} 22.
R5f3 {[%clk 0:01:59.4]} 22... Ra7 {[%clk 0:01:13.9]} 23. Rg3 {[%clk 0:01:51.8]}
23... Rb7 {[%clk 0:01:04.4]} 24. Qf5 {[%clk 0:01:40]} 24... Kh8 {[%clk
0:00:43.4]} 25. Qg5 {[%clk 0:01:16.8]} 25... Rg8 {[%clk 0:00:36.3]} 26. Qh4
{[%clk 0:00:32.2]} 26... h6 {[%clk 0:00:27.4]} 27. Rgf3 {[%clk 0:00:07.8]} 27...
Ne4 {[%clk 0:00:22.8]} 28. Qe1 {[%clk 0:00:07.2]} 28... Nxd2 {[%clk 0:00:21]}
29. Qxd2 {[%clk 0:00:08.1]} 29... Bg5 {[%clk 0:00:21.1]} 30. Bf4 {[%clk
0:00:06.2]} 30... Bxf4 {[%clk 0:00:20.3]} 31. Rxf4 {[%clk 0:00:06.4]} 31... Rf8
{[%clk 0:00:19.3]} 32. Rf5 {[%clk 0:00:05.6]} 32... Rc7 {[%clk 0:00:17.9]} 33.
Rf6 {[%clk 0:00:03.8]} 33... gxf6 {[%clk 0:00:09.1]} 34. Qxh6+ {[%clk
0:00:03.4]} 34... Kg8 {[%clk 0:00:09.7]} 35. Rxf6 {[%clk 0:00:03.2]} 35... Qxf6
{[%clk 0:00:05.1]} 36. Qxf6 {[%clk 0:00:03.3]} 36... Rxc3 {[%clk 0:00:04.8]} 37.
Qg5+ {[%clk 0:00:03.5]} 37... Kh8 {[%clk 0:00:04.7]} 38. Qxd5 {[%clk 0:00:03.4]}
38... Kg8 {[%clk 0:00:03.9]} 39. Qg5+ {[%clk 0:00:03]} 39... Kh8 {[%clk
0:00:04.4]} 40. d5 {[%clk 0:00:03.2]} 40... Rcc8 {[%clk 0:00:02.9]} 41. Qf6+
{[%clk 0:00:02.1]} 41... Kg8 {[%clk 0:00:02.7]} 42. Qxa6 {[%clk 0:00:02.2]}
42... Rcd8 {[%clk 0:00:02.5]} 43. Qc4 {[%clk 0:00:01.7]} 43... Rd7 {[%clk
0:00:02.6]} 44. Qg4+ {[%clk 0:00:01.5]} 44... Kh8 {[%clk 0:00:03.3]} 45. Qxd7
{[%clk 0:00:02.4]} 45... f6 {[%clk 0:00:03.3]} 46. Qe7 {[%clk 0:00:02.5]} 46...
Kg8 {[%clk 0:00:02.6]} 47. Qe6+ {[%clk 0:00:02.3]} 47... Kg7 {[%clk 0:00:02.3]}
48. d6 {[%clk 0:00:03.2]} 48... Rb8 {[%clk 0:00:02]} 49. Qg4+ {[%clk 0:00:03.4]}
49... Kf7 {[%clk 0:00:01.6]} 50. d7 {[%clk 0:00:04.3]} 50... Rb1+ {[%clk
0:00:01.1]} 51. Kh2 {[%clk 0:00:04.1]} 51... Rb8 {[%clk 0:00:02]} 52. Qc4+
{[%clk 0:00:03.9]} 52... Ke7 {[%clk 0:00:01.7]} 53. Qc7 {[%clk 0:00:04.8]} 53...
Rd8 {[%clk 0:00:01.4]} 54. Qxd8+ {[%clk 0:00:05.1]} 54... Kxd8 {[%clk
0:00:01.6]} 55. a4 {[%clk 0:00:05.1]} 55... Kxd7 {[%clk 0:00:02.5]} 56. h4
{[%clk 0:00:05.7]} 56... Kc6 {[%clk 0:00:02.6]} 57. h5 {[%clk 0:00:06.2]} 57...
Kb6 {[%clk 0:00:03.5]} 58. h6 {[%clk 0:00:06.8]} 58... Ka5 {[%clk 0:00:04.4]}
59. h7 {[%clk 0:00:07.7]} 59... Kxa4 {[%clk 0:00:05.3]} 60. h8=Q {[%clk
0:00:08.6]} 60... Kb5 {[%clk 0:00:05.6]} 61. Qxf6 {[%clk 0:00:09.3]} 61... Kc5
{[%clk 0:00:05.8]} 62. Qd8 {[%clk 0:00:09.8]} 62... Kb4 {[%clk 0:00:06.7]} 63.
Qc7 {[%clk 0:00:10]} 1-0